bitfinex-derivatives/quotes_BTCF0:USTF0_20241213
["timestamp","ask_amount","ask_price","bid_price","bid_amount"]
[1734125870146,0.56906876,101420.0,101410.0,1.1791318]
[1734125871239,0.56908252,101420.0,101410.0,1.1791318]
[1734125874144,0.56908252,101420.0,101410.0,1.11789412]
[1734125874145,0.6303202,101420.0,101410.0,1.11789412]
[1734125874445,0.6629202,101420.0,101410.0,1.11838886]
[1734125875949,0.60168252,101420.0,101410.0,1.11838886]
[1734125878848,0.60168252,101420.0,101410.0,0.87589656]
[1734125879055,0.60168252,101420.0,101410.0,1.11836813]
[1734125879956,0.58941043,101420.0,101410.0,1.11836813]
[1734125880651,0.76557746,101420.0,101410.0,1.35493619]
[1734125884260,0.76557746,101420.0,101410.0,1.41617387]
[1734125885654,0.73297746,101420.0,101410.0,1.41617387]
[1734125886164,0.73297746,101420.0,101410.0,2.61617387]
[1734125890265,0.73297746,101420.0,101410.0,2.61503207]
[1734125890959,0.56908656,101420.0,101410.0,2.37851767]
[1734125891153,0.15899956,101420.0,101410.0,1.23975535]
[1734125891465,0.5488849,101430.0,101410.0,1.91400361]
[1734125891466,0.08894193,101430.0,101410.0,1.91400361]
[1734125891659,0.08894193,101430.0,101420.0,1.76556236]
[1734125891856,0.08894193,101430.0,101420.0,2.8160319]
[1734125892057,4e-05,101430.0,101420.0,3.17035136]
[1734125892271,4e-05,101430.0,101420.0,3.14898505]
[1734125892457,0.08844193,101430.0,101420.0,2.79575883]
[1734125892659,0.08844193,101430.0,101420.0,2.67328347]
[1734125892857,0.08844193,101430.0,101420.0,2.79575883]
[1734125893066,0.08894193,101430.0,101420.0,2.44143937]
[1734125896263,0.13822393,101430.0,101420.0,2.68735698]
[1734125897059,0.13772393,101430.0,101420.0,1.48735698]
[1734125897566,0.13772393,101430.0,101420.0,2.68735698]
[1734125900570,0.13772393,101430.0,101420.0,0.88944229]
[1734125900571,0.49852393,101430.0,101420.0,0.88944229]
[1734125900866,0.53102393,101430.0,101420.0,0.88944229]
[1734125901769,0.54095428,101430.0,101420.0,0.88944229]
[1734125902367,0.55320537,101430.0,101420.0,0.85644229]
[1734125904667,0.60219196,101430.0,101420.0,0.7360512]
[1734125904860,0.52604112,101430.0,101420.0,0.5]
[1734125905065,0.55704112,101430.0,101420.0,0.5]
[1734125906066,0.55704112,101430.0,101420.0,0.549287]
[1734125908979,0.54479003,101430.0,101420.0,0.549287]
[1734125909174,0.55703642,101430.0,101420.0,0.549287]
[1734125911784,0.49579874,101430.0,101420.0,0.61052468]
[1734125912673,0.43229874,101430.0,101420.0,0.67176236]
[1734125912881,0.43229874,101430.0,101420.0,0.70416236]
[1734125913082,0.52046317,101430.0,101420.0,0.94021356]
[1734125913380,0.52046317,101430.0,101420.0,2.14021356]
[1734125915578,0.52046076,101430.0,101420.0,2.14021356]
[1734125915796,0.42005235,101430.0,101420.0,2.14021356]
[1734125916096,0.43229633,101430.0,101420.0,2.14021356]
[1734125916779,0.43229633,101430.0,101420.0,0.94021356]
[1734125917170,0.43229633,101430.0,101420.0,2.14021356]
[1734125917377,0.43229633,101430.0,101420.0,0.94021356]
[1734125917780,0.52045233,101430.0,101420.0,2.14021356]
[1734125918286,0.43229633,101430.0,101420.0,2.14021356]
[1734125918882,0.43229879,101430.0,101420.0,2.14021356]
[1734125921387,0.57925751,101430.0,101420.0,2.14021356]
[1734125925796,0.56701107,101430.0,101420.0,2.14021356]
[1734125926087,0.56701107,101430.0,101420.0,2.43550714]
[1734125926088,0.57926383,101430.0,101420.0,2.43550714]
[1734125927586,0.57926383,101430.0,101420.0,2.14021356]
[1734125929183,0.57926383,101430.0,101420.0,2.43550714]
[1734125930090,0.57926383,101430.0,101420.0,2.67830202]
[1734125930490,0.57926383,101430.0,101420.0,2.92112933]
[1734125930689,0.56701107,101430.0,101420.0,2.67833445]
[1734125930882,0.57926993,101430.0,101420.0,2.67833445]
[1734125931391,0.57926993,101430.0,101420.0,2.67879673]
[1734125933688,0.57926993,101430.0,101420.0,2.61755905]
[1734125934192,0.57926993,101430.0,101420.0,2.55632137]
[1734125934393,0.57926993,101430.0,101420.0,2.61755905]
[1734125934890,0.57926993,101430.0,101420.0,2.55632137]
[1734125935093,0.57926993,101430.0,101420.0,2.61755905]
[1734125935592,0.57926993,101430.0,101420.0,2.58515905]
[1734125935797,0.61066993,101430.0,101420.0,2.58515905]
[1734125935988,0.61066993,101430.0,101420.0,2.5860069]
[1734125937397,0.61066993,101430.0,101420.0,1.3860069]
[1734125937789,0.59841107,101430.0,101420.0,1.3860069]
[1734125938992,0.61066869,101430.0,101420.0,1.3860069]
[1734125939295,0.59841107,101430.0,101420.0,1.3860069]
[1734125940089,0.59841107,101430.0,101420.0,1.38634482]
[1734125942090,0.7745781,101430.0,101420.0,1.15029362]
[1734125942291,0.78683848,101430.0,101420.0,1.15029362]
[1734125942499,0.7745781,101430.0,101420.0,1.15029362]
[1734125942801,0.59841107,101430.0,101420.0,1.15029362]
[1734125943497,0.7745781,101430.0,101420.0,1.15029362]
[1734125943993,0.7745781,101430.0,101420.0,1.15058549]
[1734125944195,0.6106795,101430.0,101420.0,1.15058549]
[1734125944696,0.78684653,101430.0,101420.0,1.15058549]
[1734125944900,0.7745781,101430.0,101420.0,1.15058549]
[1734125945402,0.7745781,101430.0,101420.0,1.21182317]
[1734125946895,0.7431781,101430.0,101420.0,1.21182317]
[1734125947096,0.56701107,101430.0,101420.0,1.24362317]
[1734125947498,0.57928341,101430.0,101420.0,1.24362317]
[1734125948305,0.57928341,101430.0,101420.0,1.18238549]
[1734125948494,0.57928341,101430.0,101420.0,1.18222346]
[1734125949396,0.57928341,101430.0,101420.0,1.24346114]
[1734125951196,0.56701107,101430.0,101420.0,1.5977806]
[1734125951501,0.57927813,101430.0,101420.0,1.24346114]
[1734125952701,0.52999613,101430.0,101420.0,1.24346114]
[1734125952901,0.52006578,101430.0,101420.0,1.24346114]
[1734125953098,0.27702353,101430.0,101420.0,1.5977806]
[1734125953317,0.13006481,101430.0,101420.0,1.5977806]
[1734125953700,0.13006481,101430.0,101420.0,2.7977806]
[1734125955308,0.20609267,101430.0,101420.0,2.7977806]
[1734125955809,0.21835973,101430.0,101420.0,2.7977806]
[1734125956305,0.20609267,101430.0,101420.0,2.50248702]
[1734125957406,0.20609267,101430.0,101420.0,2.79792065]
[1734125958196,0.20609267,101430.0,101420.0,2.79195784]
[1734125958197,0.08833492,101430.0,101420.0,2.79195784]
[1734125958506,0.08833492,101430.0,101420.0,3.0873623]
[1734125959702,0.08837492,101430.0,101420.0,3.0873623]
[1734125960313,0.08837492,101430.0,101420.0,3.4481623]
[1734125962310,0.08837492,101430.0,101420.0,3.4463624]
[1734125962606,8e-05,101430.0,101420.0,3.15095794]
[1734125969915,8e-05,101430.0,101420.0,2.86151276]
[1734125970607,8e-05,101430.0,101420.0,2.88105412]
[1734125971908,8e-05,101430.0,101420.0,2.86151276]
[1734125972313,8e-05,101430.0,101420.0,1.66151276]
[1734125973018,8e-05,101430.0,101420.0,2.86151276]
[1734125975319,8e-05,101430.0,101420.0,2.75826553]
[1734125975522,8e-05,101430.0,101420.0,2.88074089]
[1734125976320,8e-05,101430.0,101420.0,2.88055814]
[1734125978124,8e-05,101430.0,101420.0,3.16978549]
[1734125984522,0.08837492,101430.0,101420.0,3.16978549]
[1734125986316,0.08837492,101430.0,101420.0,2.81546603]
[1734125987216,0.08837492,101430.0,101420.0,3.23119147]
[1734125987417,8e-05,101430.0,101420.0,3.39797097]
[1734125987618,8e-05,101430.0,101420.0,3.33673329]
[1734125991824,0.08837492,101430.0,101420.0,3.33673329]
[1734125992922,0.08837492,101430.0,101420.0,2.92371991]
[1734125993128,0.08837492,101430.0,101420.0,2.81536698]
[1734125994425,0.08837492,101430.0,101420.0,2.81490555]
[1734125997728,0.08837492,101430.0,101420.0,3.16963885]
[1734125998931,0.08837492,101430.0,101420.0,3.23087653]
[1734125999231,0.08837492,101430.0,101420.0,2.87614323]
[1734125999426,0.08837492,101430.0,101420.0,2.81490555]
[1734125999623,0.08837492,101430.0,101420.0,2.87614323]
[1734126000132,0.08837492,101430.0,101420.0,2.81490555]
[1734126000435,0.08837492,101430.0,101420.0,2.87614323]
[1734126003128,8e-05,101430.0,101420.0,2.87614323]
[1734126004525,0.20655267,101440.0,101430.0,0.049287]
[1734126004726,0.08879492,101440.0,101430.0,1.45021779]
[1734126005234,0.31829049,101450.0,101440.0,0.049282]
[1734126005432,0.31829049,101450.0,101440.0,1.06420794]
[1734126005433,0.17133177,101450.0,101440.0,1.06420794]
[1734126005933,0.17133177,101450.0,101440.0,1.56420794]
[1734126006440,0.17133177,101450.0,101440.0,1.08715544]
[1734126006441,0.22060877,101450.0,101440.0,1.08715544]
[1734126006639,0.22060877,101450.0,101440.0,1.2096308]
[1734126006837,0.36756749,101450.0,101440.0,1.2096308]
[1734126007230,0.36806749,101450.0,101440.0,1.2096308]
[1734126008138,0.36756749,101450.0,101440.0,1.2096308]
[1734126008443,0.36756749,101450.0,101440.0,1.44593851]
[1734126009232,0.22109051,101450.0,101440.0,1.2096308]
[1734126010130,0.22059051,101450.0,101440.0,1.2096308]
[1734126011031,0.58139051,101450.0,101440.0,1.14839312]
[1734126011231,0.67232916,101450.0,101440.0,0.96279883]
[1734126011436,0.83624124,101450.0,101440.0,0.96279883]
[1734126012133,0.83574124,101450.0,101440.0,0.96279883]
[1734126013245,0.77500356,101450.0,101440.0,1.02403651]
[1734126014125,0.77450356,101450.0,101440.0,1.02403651]
[1734126014743,0.77450356,101450.0,101440.0,0.96279883]
[1734126014744,0.83574124,101450.0,101440.0,0.96279883]
[1734126015137,0.83624124,101450.0,101440.0,0.96279883]
[1734126015441,0.77500356,101450.0,101440.0,1.02403651]
[1734126016142,0.77450356,101450.0,101440.0,1.02403651]
[1734126017243,0.77500356,101450.0,101440.0,1.02403651]
[1734126017638,0.59883653,101450.0,101440.0,1.02403651]
[1734126017833,0.61109396,101450.0,101440.0,1.02403651]
[1734126018244,0.61059396,101450.0,101440.0,1.02403651]
[1734126019149,0.61109396,101450.0,101440.0,1.02403651]
[1734126020228,0.61109396,101450.0,101440.0,0.84680917]
[1734126021636,0.6110937,101450.0,101440.0,0.84680917]
[1734126022140,0.6105937,101450.0,101440.0,0.84680917]
[1734126022438,0.78676073,101450.0,101440.0,1.02404005]
[1734126022639,0.77450356,101450.0,101440.0,1.02404005]
[1734126023944,0.79464456,101450.0,101440.0,1.02404005]
[1734126026038,0.79464456,101450.0,101440.0,0.96280237]
[1734126027144,0.79464456,101450.0,101440.0,1.02404005]
[1734126028650,0.79464456,101450.0,101440.0,0.96280237]
[1734126031343,0.79464456,101450.0,101440.0,1.02404005]
[1734126035756,0.85588224,101450.0,101440.0,0.96280237]
[1734126036253,0.79464456,101450.0,101440.0,0.96280237]
[1734126037652,0.79464456,101450.0,101440.0,1.02404005]
[1734126039252,0.64768584,101450.0,101440.0,1.02404005]
[1734126042246,0.64768584,101450.0,101440.0,0.84680917]
[1734126042651,0.64768584,101450.0,101440.0,0.84676917]
[1734126046055,0.64768584,101450.0,101440.0,0.78553149]
[1734126046854,0.64768584,101450.0,101440.0,0.96289845]
[1734126049151,0.64768584,101450.0,101440.0,0.78553149]
[1734126049550,0.64768584,101450.0,101440.0,0.9629152]
[1734126056249,0.64768584,101450.0,101440.0,0.94073773]
[1734126056952,0.67633116,101450.0,101440.0,0.94073773]
[1734126057462,0.64768584,101450.0,101440.0,0.94073773]
[1734126061355,0.64768584,101450.0,101440.0,0.70444824]
[1734126061861,0.64768584,101450.0,101440.0,0.94073773]
[1734126067861,0.64768584,101450.0,101440.0,0.70444824]
[1734126068056,0.64768584,101450.0,101440.0,0.94073773]
[1734126071968,0.64768584,101450.0,101440.0,0.70444824]
[1734126072363,0.64768584,101450.0,101440.0,0.94073773]
[1734126072563,0.62754484,101450.0,101440.0,0.94073773]
[1734126073871,0.62754484,101450.0,101440.0,0.70444824]
[1734126076370,0.62754484,101450.0,101440.0,0.94073773]
[1734126077665,0.64703937,101450.0,101440.0,0.94073773]
[1734126078971,0.61533937,101450.0,101440.0,0.94073773]
[1734126082172,0.61533937,101450.0,101440.0,0.94926023]
[1734126082173,0.467296,101450.0,101440.0,0.94926023]
[1734126082381,0.43917234,101450.0,101440.0,0.9936552]
[1734126083490,0.61599071,101450.0,101440.0,0.9936552]
[1734126092885,0.43917234,101450.0,101440.0,0.9936552]
[1734126093273,0.43917234,101450.0,101440.0,1.05489288]
[1734126093587,0.43917234,101450.0,101440.0,1.11613056]
[1734126093790,0.61591862,101450.0,101440.0,1.05489288]
[1734126097380,0.68488369,101450.0,101440.0,0.93874685]
[1734126097581,0.5204163,101450.0,101440.0,1.4732109]
[1734126097781,0.5204163,101450.0,101440.0,2.43692141]
[1734126098383,0.5204163,101450.0,101440.0,2.67331066]
[1734126099594,0.5204163,101450.0,101440.0,2.43432756]
[1734126100487,0.5204163,101450.0,101440.0,2.13884661]
[1734126100988,0.5204163,101450.0,101440.0,2.67313709]
[1734126100989,0.63824339,101450.0,101440.0,2.67313709]
[1734126101390,0.63824339,101450.0,101440.0,2.43432756]
[1734126102382,0.27744339,101450.0,101440.0,2.43432756]
[1734126102591,0.27744339,101450.0,101440.0,2.13884661]
[1734126102788,0.11782709,101450.0,101440.0,2.43661018]
[1734126103492,0.11782709,101450.0,101440.0,2.6728263]
[1734126105393,0.11782709,101450.0,101440.0,2.67198465]
[1734126106595,0.11782709,101450.0,101440.0,2.43415443]
[1734126107488,0.11782709,101450.0,101440.0,2.13867348]
[1734126112896,0.13008986,101450.0,101440.0,2.67110509]
[1734126113595,0.13008986,101450.0,101440.0,2.43415443]
[1734126114392,0.13008986,101450.0,101440.0,2.54354173]
[1734126114596,0.13008986,101450.0,101440.0,2.31167907]
[1734126114794,0.11782709,101450.0,101440.0,2.43415443]
[1734126114996,0.13008986,101450.0,101440.0,2.43415443]
[1734126115502,0.13008986,101450.0,101440.0,2.66658805]
[1734126118098,0.11782709,101450.0,101440.0,3.02746219]
[1734126118410,0.11782709,101450.0,101440.0,2.43415443]
[1734126118597,0.11782709,101450.0,101440.0,2.13867348]
[1734126121396,0.11782709,101450.0,101440.0,2.43415443]
[1734126121598,0.11782709,101450.0,101440.0,2.667032]
[1734126123100,0.13009974,101450.0,101440.0,2.667032]
[1734126123609,0.11782709,101450.0,101440.0,2.43081588]
[1734126123899,0.11782709,101450.0,101440.0,2.66703867]
[1734126124509,0.11782709,101450.0,101440.0,2.43081588]
[1734126125700,0.11782709,101450.0,101440.0,1.23081588]
[1734126126100,0.11782709,101450.0,101440.0,2.43081588]
[1734126126599,0.2651645,101450.0,101440.0,2.43081588]
[1734126127106,0.27743715,101450.0,101440.0,2.43081588]
[1734126128007,0.27743715,101450.0,101440.0,2.78539302]
[1734126129310,0.27743715,101450.0,101440.0,1.58539302]
[1734126129810,0.27743715,101450.0,101440.0,2.78539302]
[1734126130712,0.27743715,101450.0,101440.0,2.78591218]
[1734126135116,0.58164774,101450.0,101440.0,2.27815968]
[1734126135311,0.58164774,101450.0,101440.0,1.29246462]
[1734126135312,0.79539837,101450.0,101440.0,1.29246462]
[1734126135613,0.67896096,101450.0,101440.0,0.94088913]
[1734126135806,0.67896096,101450.0,101440.0,0.70440749]
[1734126136002,0.67901428,101450.0,101440.0,0.65512549]
[1734126136203,0.049282,101440.0,101430.0,0.91378383]
[1734126136409,0.71211304,101440.0,101430.0,0.67730219]
[1734126136807,0.85931324,101440.0,101430.0,0.67730219]
[1734126137310,0.87157813,101440.0,101430.0,0.72658919]
[1734126137704,0.71211304,101440.0,101430.0,0.549287]
[1734126139310,0.71211304,101440.0,101430.0,0.549787]
[1734126139501,0.8591125,101440.0,101430.0,0.549787]
[1734126140407,0.92035018,101440.0,101430.0,0.549787]
[1734126141300,0.92035018,101440.0,101430.0,0.549287]
[1734126141514,0.74355682,101440.0,101430.0,0.549287]
[1734126141712,0.68231914,101440.0,101430.0,0.549287]
[1734126142907,0.68231914,101440.0,101430.0,0.61052468]
[1734126143108,0.69213944,101440.0,101430.0,0.61052468]
[1734126143517,0.63090176,101440.0,101430.0,0.61052468]
[1734126144109,0.69213944,101440.0,101430.0,0.61052468]
[1734126144306,0.69213944,101440.0,101430.0,0.61102468]
[1734126144508,0.74842829,101440.0,101430.0,0.61102468]
[1734126145206,0.76067005,101440.0,101430.0,0.61102468]
[1734126147315,0.76066774,101440.0,101430.0,0.61102468]
[1734126148623,0.78036544,101440.0,101430.0,0.61102468]
[1734126149320,0.78036544,101440.0,101430.0,0.61052468]
[1734126152123,0.78032544,101440.0,101430.0,0.61052468]
[1734126152919,0.84156312,101440.0,101430.0,0.549287]
[1734126153429,0.72403659,101440.0,101430.0,0.549287]
[1734126153623,0.71179714,101440.0,101430.0,0.549287]
[1734126154132,0.72403681,101440.0,101430.0,0.549287]
[1734126154514,0.84651217,101440.0,101430.0,0.5]
[1734126154719,1.10282872,101440.0,101410.0,0.53417888]
[1734126155027,0.94962856,101420.0,101410.0,0.82201475]
[1734126155920,0.94962856,101420.0,101410.0,0.64471256]
[1734126157028,0.88839088,101420.0,101410.0,0.64471256]
[1734126157426,0.88839088,101420.0,101410.0,0.64323368]
[1734126157427,0.90062591,101420.0,101410.0,0.64323368]
[1734126158213,0.90062591,101420.0,101410.0,0.581996]
[1734126158419,0.90062591,101420.0,101410.0,0.64323368]
[1734126159425,1.04749951,101420.0,101410.0,0.64323368]
[1734126159928,1.10873719,101420.0,101410.0,0.59393768]
[1734126160130,0.96186359,101420.0,101410.0,0.59393768]
[1734126160523,1.10873719,101420.0,101410.0,0.59393768]
[1734126161027,1.04749951,101420.0,101410.0,0.59393768]
[1734126161234,1.04749951,101420.0,101410.0,0.64323468]
[1734126161235,0.91050274,101420.0,101410.0,0.64323468]
[1734126161428,0.99862538,101420.0,101410.0,0.67553468]
[1734126161731,0.98639035,101420.0,101410.0,0.70683468]
[1734126162319,0.99862538,101420.0,101410.0,0.70683468]
[1734126163227,0.99863022,101420.0,101410.0,0.70683468]
[1734126163445,0.99863022,101420.0,101410.0,0.70733468]
[1734126163627,0.99863022,101420.0,101410.0,0.88463687]
[1734126164318,0.99863022,101420.0,101410.0,0.88413687]
[1734126164522,1.05738118,101420.0,101410.0,0.88413687]
[1734126165525,1.05738118,101420.0,101410.0,0.88463687]
[1734126166431,1.04514131,101420.0,101410.0,0.88413687]
[1734126166628,1.05739407,101420.0,101410.0,0.88413687]
[1734126167535,1.05739407,101420.0,101410.0,0.88463687]
[1734126168431,1.05739407,101420.0,101410.0,0.88413687]
[1734126169433,1.05739407,101420.0,101410.0,0.88463687]
[1734126169735,1.04514131,101420.0,101410.0,0.88463687]
[1734126169934,1.05740036,101420.0,101410.0,0.88463687]
[1734126173133,1.04514131,101420.0,101410.0,0.88463687]
[1734126173333,1.05739922,101420.0,101410.0,0.88463687]
[1734126176633,1.05740062,101420.0,101410.0,0.88463687]
[1734126177336,1.05740062,101420.0,101410.0,0.88413687]
[1734126179339,1.05740062,101420.0,101410.0,1.12061851]
[1734126179640,1.05740679,101420.0,101410.0,1.12061851]
[1734126180341,0.99823796,101420.0,101410.0,1.18185619]
[1734126180542,0.20582896,101420.0,101410.0,1.66246924]
[1734126180743,0.08833008,101420.0,101410.0,2.01704638]
[1734126181737,0.08833008,101420.0,101410.0,1.66246924]
[1734126181936,0.08833008,101420.0,101410.0,2.86246924]
[1734126183440,0.08833008,101420.0,101410.0,3.21553663]
[1734126185444,0.08833008,101420.0,101410.0,3.15429895]
[1734126187350,0.6378307,101430.0,101420.0,0.049292]
[1734126187553,0.6378307,101430.0,101420.0,0.52372158]
[1734126188044,0.6378307,101430.0,101420.0,2.22372158]
[1734126188243,0.63782519,101430.0,101420.0,2.22372158]
[1734126188442,0.63832519,101430.0,101420.0,2.22372158]
[1734126188643,0.69686871,101430.0,101420.0,1.98761192]
[1734126189351,0.69636871,101430.0,101420.0,1.98761192]
[1734126190247,0.69636871,101430.0,101420.0,0.78761192]
[1734126190452,0.69686871,101430.0,101420.0,0.78761192]
[1734126191345,0.69636515,101430.0,101420.0,0.78761192]
[1734126191744,0.75760283,101430.0,101420.0,0.78761192]
[1734126191955,0.69636515,101430.0,101420.0,0.78761192]
[1734126192451,0.69686515,101430.0,101420.0,0.78761192]
[1734126193354,0.69636515,101430.0,101420.0,0.78761192]
[1734126194551,0.69686515,101430.0,101420.0,0.78761192]
[1734126194754,0.69686367,101430.0,101420.0,0.78761192]
[1734126195446,0.69636367,101430.0,101420.0,0.78761192]
[1734126196052,0.57886479,101430.0,101420.0,0.78761192]
[1734126196349,0.56660806,101430.0,101420.0,0.78761192]
[1734126196552,0.56710806,101430.0,101420.0,0.78761192]
[1734126196853,0.57936501,101430.0,101420.0,0.78761192]
[1734126197054,0.64060269,101430.0,101420.0,0.67708224]
[1734126197242,0.84929597,101430.0,101420.0,0.67708224]
[1734126197446,0.8365391,101430.0,101420.0,0.5]
[1734126197652,0.77530142,101430.0,101420.0,0.549292]
[1734126197850,0.77530142,101430.0,101420.0,0.78761192]
[1734126198055,0.78755877,101430.0,101420.0,0.78761192]
[1734126198557,0.8370391,101430.0,101420.0,0.72637424]
[1734126199750,0.8370391,101430.0,101420.0,0.549292]
[1734126200153,0.8370391,101430.0,101420.0,0.61052968]
[1734126201048,0.77580142,101430.0,101420.0,0.61052968]
[1734126202156,0.77580142,101430.0,101420.0,0.78761192]
[1734126205462,0.62842782,101430.0,101420.0,0.78761192]
[1734126207252,0.62842782,101430.0,101420.0,0.72637424]
[1734126207461,0.62842782,101430.0,101420.0,0.78761192]
[1734126210454,0.59652782,101430.0,101420.0,0.72637424]
[1734126212054,0.59652782,101430.0,101420.0,0.78761192]
[1734126215550,0.59652782,101430.0,101420.0,0.72637424]
[1734126216467,0.6577655,101430.0,101420.0,0.72637424]
[1734126218262,0.6577655,101430.0,101420.0,0.9624839]
[1734126218865,0.6577655,101430.0,101420.0,0.78540166]
[1734126218866,0.49325043,101430.0,101420.0,0.78540166]
[1734126219168,0.67004379,101430.0,101420.0,0.78540166]
[1734126220770,0.67004379,101430.0,101420.0,0.72664063]
[1734126221667,0.6577655,101430.0,101420.0,0.72664063]
[1734126222665,0.6577655,101430.0,101420.0,0.67734863]
[1734126222863,0.049292,101420.0,101410.0,1.02735329]
[1734126223060,0.64813602,101420.0,101410.0,1.02735329]
[1734126223273,0.79545972,101420.0,101410.0,1.02735329]
[1734126223569,0.79545972,101420.0,101410.0,1.02685329]
[1734126223971,0.64813602,101420.0,101410.0,1.02685329]
[1734126224558,0.58689834,101420.0,101410.0,1.08859097]
[1734126225567,0.58689834,101420.0,101410.0,1.08809097]
[1734126226473,0.64813602,101420.0,101410.0,1.08859097]
[1734126227472,0.7093737,101420.0,101410.0,0.94615829]
[1734126227776,0.7401737,101420.0,101410.0,0.94615829]
[1734126227973,0.88746173,101420.0,101410.0,0.94615829]
[1734126228574,0.82622405,101420.0,101410.0,0.94665829]
[1734126229162,0.64941771,101420.0,101410.0,0.94665829]
[1734126229375,0.66169081,101420.0,101410.0,0.94665829]
[1734126230172,0.64941771,101420.0,101410.0,0.94665829]
[1734126230378,0.66168996,101420.0,101410.0,0.94665829]
[1734126230571,0.60045228,101420.0,101410.0,0.94665829]
[1734126230770,0.72292764,101420.0,101410.0,0.94665829]
[1734126230984,0.78504595,101420.0,101410.0,0.71054863]
[1734126232190,0.7727737,101420.0,101410.0,0.5005]
[1734126232385,0.7727737,101420.0,101410.0,0.0005]
[1734126233389,0.65029834,101420.0,101410.0,0.0005]
[1734126233583,0.71153602,101420.0,101410.0,0.0005]
[1734126233885,0.75539325,101420.0,101410.0,0.17784863]
[1734126235581,0.80524165,101420.0,101410.0,0.17784863]
[1734126236090,0.74400397,101420.0,101410.0,0.17784863]
[1734126236493,0.89114553,101420.0,101410.0,0.17784863]
[1734126236884,0.74400397,101420.0,101410.0,0.17784863]
[1734126237284,0.89114189,101420.0,101410.0,0.17784863]
[1734126237492,0.76650421,101420.0,101410.0,0.23908631]
[1734126237689,0.58969787,101420.0,101410.0,0.27188631]
[1734126237884,0.63867238,101420.0,101410.0,1.91064863]
[1734126238291,0.63867238,101420.0,101410.0,0.71064863]
[1734126239587,0.63867238,101420.0,101410.0,0.71014863]
[1734126241393,0.63867238,101420.0,101410.0,0.73610966]
[1734126241599,0.67107238,101420.0,101410.0,0.73610966]
[1734126243800,0.67107238,101420.0,101410.0,0.91331075]
[1734126245299,0.73231006,101420.0,101410.0,0.73610966]
[1734126245496,0.67107238,101420.0,101400.0,0.82974734]
[1734126245811,0.41911437,101410.0,101400.0,0.82974734]
[1734126246102,0.410092,101410.0,101400.0,0.82974734]
[1734126246502,0.410092,101410.0,101400.0,0.83024734]
[1734126247708,0.52749546,101410.0,101400.0,0.82974734]
[1734126248007,0.52749546,101410.0,101400.0,0.87904434]
[1734126248195,0.52749546,101410.0,101400.0,0.64293468]
[1734126248404,0.52749546,101410.0,101400.0,0.70417236]
[1734126248704,0.52749546,101410.0,101400.0,1.00015331]
[1734126249300,0.52749546,101410.0,101400.0,1.17844746]
[1734126249500,0.52749546,101410.0,101400.0,0.93841563]
[1734126250593,0.52749546,101410.0,101400.0,1.17855992]
[1734126250802,0.53742415,101410.0,101400.0,1.17855992]
[1734126251395,0.53742415,101410.0,101400.0,2.37855992]
[1734126251598,0.53742415,101410.0,101400.0,2.37805992]
[1734126252501,0.53742415,101410.0,101400.0,2.37855992]
[1734126252811,0.53742415,101410.0,101400.0,1.17855992]
[1734126253198,0.53742415,101410.0,101400.0,2.37855992]
[1734126253602,0.53742415,101410.0,101400.0,2.32876292]
[1734126253807,0.59866183,101410.0,101400.0,1.06752524]
[1734126254004,0.59866183,101410.0,101400.0,1.30398884]
[1734126254005,0.74579975,101410.0,101400.0,1.30398884]
[1734126254208,0.64062277,101410.0,101400.0,1.06434455]
[1734126254608,0.64062277,101410.0,101400.0,1.06484455]
[1734126254811,0.64062277,101410.0,101400.0,0.7693636]
[1734126255610,0.64062277,101410.0,101400.0,0.7688636]
[1734126256601,0.64062277,101410.0,101400.0,0.7693636]
[1734126257208,0.64062666,101410.0,101400.0,0.7693636]
[1734126257713,0.64062666,101410.0,101400.0,0.7688636]
[1734126258510,0.27982666,101410.0,101400.0,0.7693636]
[1734126258813,0.65806471,101410.0,101400.0,0.67784316]
[1734126259116,0.68826471,101410.0,101400.0,0.67784316]
[1734126259318,1.04906471,101410.0,101400.0,0.5005]
[1734126259817,1.04906471,101410.0,101400.0,0.67784316]
[1734126260318,1.04906471,101410.0,101400.0,0.5005]
[1734126262511,1.04906471,101410.0,101400.0,0.5]
[1734126263112,1.12252471,101410.0,101400.0,0.17734316]
[1734126263316,1.12252471,101410.0,101390.0,0.91380676]
[1734126263317,0.049297,101400.0,101390.0,0.91380676]
[1734126263510,0.049297,101400.0,101390.0,0.91430676]
[1734126263511,0.64907615,101400.0,101390.0,0.91430676]
[1734126263919,0.66129539,101400.0,101390.0,0.67784316]
[1734126264517,0.66129539,101400.0,101390.0,0.67734316]
[1734126265219,0.77858582,101400.0,101390.0,0.67734316]
[1734126265617,0.77858582,101400.0,101390.0,0.67784316]
[1734126266521,0.76636658,101400.0,101390.0,0.67734316]
[1734126266823,0.77858038,101400.0,101390.0,0.73858084]
[1734126267613,0.77858038,101400.0,101390.0,0.73908084]
[1734126268722,0.7173427,101400.0,101390.0,0.73858084]
[1734126269613,0.7173427,101400.0,101390.0,0.73908084]
[1734126269813,0.7173389,101400.0,101390.0,0.73908084]
[1734126270620,0.7173389,101400.0,101390.0,0.73858084]
[1734126271523,0.7173389,101400.0,101390.0,0.73908084]
[1734126272116,0.77857658,101400.0,101390.0,0.73908084]
[1734126272518,0.77857658,101400.0,101390.0,0.56123768]
[1734126273023,0.77858127,101400.0,101390.0,0.56123768]
[1734126273219,0.77857984,101400.0,101390.0,0.56123768]
[1734126273625,0.77857984,101400.0,101390.0,0.73908084]
[1734126274729,0.77857984,101400.0,101390.0,0.56173768]
[1734126274919,0.50243468,101400.0,101390.0,0.67784316]
[1734126277528,0.64907615,101400.0,101390.0,0.17784316]
[1734126278021,0.64907615,101400.0,101390.0,0.23908084]
[1734126278022,0.58783847,101400.0,101390.0,0.23908084]
[1734126278625,0.58783847,101400.0,101390.0,0.23858084]
[1734126279634,0.55673847,101400.0,101390.0,0.23858084]
[1734126279829,0.410097,101400.0,101390.0,0.27108084]
[1734126280130,0.410097,101400.0,101390.0,1.08894644]
[1734126280131,0.52741178,101400.0,101390.0,1.08894644]
[1734126280328,0.410097,101400.0,101390.0,1.08894644]
[1734126280535,0.52747772,101400.0,101390.0,0.85248284]
[1734126281032,0.67411919,101400.0,101390.0,0.85248284]
[1734126281625,0.52747772,101400.0,101390.0,0.85248284]
[1734126281931,0.52747772,101400.0,101390.0,1.08894644]
[1734126282129,0.67411919,101400.0,101390.0,1.08894644]
[1734126284232,0.55673847,101400.0,101390.0,0.91160328]
[1734126284435,0.56896822,101400.0,101390.0,0.91160328]
[1734126284734,0.55673847,101400.0,101390.0,0.91160328]
[1734126285432,0.56896822,101400.0,101390.0,0.91160328]
[1734126285634,0.55673847,101400.0,101390.0,0.91160328]
[1734126285827,0.56898108,101400.0,101390.0,0.91160328]
[1734126288636,0.56898108,101400.0,101390.0,1.27502244]
[1734126288637,0.32569562,101400.0,101390.0,1.27502244]
[1734126288832,0.26719451,101400.0,101390.0,1.5683619]
[1734126289035,0.26719285,101400.0,101390.0,2.7683619]
[1734126289537,0.2549519,101400.0,101390.0,2.7683619]
[1734126290039,0.2549519,101400.0,101390.0,2.76740844]
[1734126290731,0.2549519,101400.0,101390.0,2.82864612]
[1734126291536,0.2549519,101400.0,101390.0,2.76740844]